[Event "AI Cup Div-2 2023"]
[Site "Online"]
[Date "2023.09.25"]
[Round "1.1"]
[White "Caruana, Fabiano"]
[Black "Gledura, Benjamin"]
[Result "1-0"]
[ECO "B42"]
[WhiteElo "2786"]
[BlackElo "2633"]
[Annotator "TA"]
[PlyCount "143"]
[EventDate "2023.09.18"]
[EventType "k.o."]
[EventCountry "NET"]
[SourceTitle "playchess.com"]
[Source "ChessBase"]
[SourceQuality "1"]
[TimeControl "900+3"]

{[%evp 13,143,17,22,30,19,24,38,12,53,17,22,8,23,31,27,18,26,19,22,9,13,0,0,0,41,0,0,-56,38,23,47,-8,58,0,0,0,0,0,0,-47,-47,-33,-21,-25,58,36,50,49,43,28,44,0,0,0,0,0,79,0,0,0,0,0,0,0,0,0,0,0,0,0,0,0,15,0,0,0,27,27,29,0,22,22,22,37,24,24,33,33,151,115,217,217,222,233,225,221,292,291,291,265,348,337,344,309,327,268,258,229,419,95,95,73,112,8,8,8,243,243,531,370,843,1092,1118,1022,1056,1025,1770,1743,1794,1778,1778,1660]} 1. e4 {[%emt 0:00:06]} c5 {[%emt 0:00:07]} 2. Nf3 {[%emt 0:00:02]} e6 {[%emt 0:00:02]} 3. d4 {[%emt 0:00:04]} cxd4 {[%emt 0:00:02]} 4. Nxd4 {[%emt 0:00:00]} a6 {[%emt 0:00:01]} 5. Bd3 {[%emt 0:00:05]} Bc5 {[%emt 0:00:03]} 6. Nb3 {[%emt 0:00:36]} Ba7 {[%emt 0:00:04]} 7. O-O {[%emt 0:00:02]} Ne7 {[%emt 0:00:27]} 8. Qe2 $1 {[%emt 0:00:03] 8.Qe2 is better than 8.c4. B42: Sicilian: Kan Variation: 5 Bd3.} O-O {[%emt 0:00:05]} 9. Be3 {[%emt 0:00:20]} Nbc6 {[%emt 0:00:15]} 10. N1d2 {[%emt 0:00:12] White is slightly better.} e5 {[%emt 0:01:55]} 11. Rad1 {[%emt 0:01:27]} d6 {[%emt 0:00:03]} 12. c3 {[%emt 0:00:07]} Be6 {[%emt 0:00:33]} 13. Bxa7 {[%emt 0:00:17]} Rxa7 {[%emt 0:00:02]} 14. Nc4 {[%emt 0:00:02]} b5 {[%emt 0:00:29]} 15. Ne3 {[%emt 0:00:01]} Qb6 {[%emt 0:00:25] [#]} 16. Bc2 $146 {[%emt 0:01:03]} ({Predecessor:} 16. Bb1 Rd8 17. Nd5 Bxd5 18. exd5 Nb8 19. Rd3 Rf8 20. Rh3 f5 21. Qh5 h6 22. g4 {0-1 Bashirov,T (2238)-Iskandarov,M (2502) Cesme op-A 7th 2019 (7)}) 16... Rd7 {[%emt 0:00:51]} 17. Nd5 {[%emt 0:00:04]} Bxd5 {[%emt 0:00:02]} 18. exd5 {[%emt 0:00:00]} Nd8 {[%emt 0:00:08]} 19. Nd2 {[%emt 0:01:54]} (19. Kh1 $5 {[%cal Rf2f4]}) 19... f5 {[%emt 0:00:51]} 20. c4 {[%emt 0:01:30]} (20. Kh1 $11) 20... b4 {[%emt 0:00:36]} (20... g6 $15) 21. Kh1 {[%emt 0:00:31]} Ng6 {[%emt 0:00:25]} 22. g3 {[%emt 0:00:10]} ({White should play} 22. g4 $14) 22... Re7 {[%emt 0:00:02]} (22... Rdf7 $11) 23. Rde1 {[%emt 0:00:31]} (23. Qe3 $14 Qc7 24. a3) 23... Nb7 $11 {[%emt 0:00:15]} 24. Qe3 {[%emt 0:00:36]} Qc7 {[%emt 0:02:39]} 25. Qg5 {[%emt 0:01:40]} Ref7 {[%emt 0:00:32]} 26. f4 {[%emt 0:00:56]} (26. g4 $1 $11) 26... e4 $15 {[%emt 0:00:02]} 27. Qh5 {[%emt 0:00:09]} Ne7 {[%emt 0:00:19]} 28. Qe2 {[%emt 0:00:12]} Nc8 {[%emt 0:00:24]} ({Better is} 28... Kh8 $11) 29. g4 $36 {[%emt 0:00:39][%mdl 2048] gxf5 would be deadly. White has some pressure.} (29. Nxe4 Re7 30. Qd2 (30. Qh5 $2 fxe4 31. Rxe4 Rxe4 $17) 30... fxe4 31. Qxb4 Nc5 $17) 29... g6 {[%emt 0:00:53]} 30. gxf5 {[%emt 0:00:03]} gxf5 {[%emt 0:00:02]} 31. Rg1+ {[%emt 0:00:01]} Kh8 $1 {[%emt 0:00:01]} 32. Rg5 {[%emt 0:00:47]} Rg7 {[%emt 0:00:02]} 33. Reg1 {[%emt 0:00:07]} Rxg5 {[%emt 0:00:04]} 34. Rxg5 {[%emt 0:00:00]} (34. fxg5 Qg7 $15) 34... Nb6 {[%emt 0:00:20]} (34... Nc5 $11 {keeps the balance.}) 35. Qh5 {[%emt 0:00:20]} (35. b3 $16) 35... Qf7 $1 $11 {[%emt 0:01:03]} (35... Nxc4 $2 36. Rxf5 Qe7 37. Nxc4 $18) 36. Qxf7 {[%emt 0:00:13]} Rxf7 {[%emt 0:00:02]} 37. b3 {[%emt 0:00:02]} Nc5 {[%emt 0:00:31]} 38. Nf1 {[%emt 0:00:03]} Nc8 $1 {[%emt 0:00:03]} 39. Ng3 {[%emt 0:00:37]} Ne7 {[%emt 0:00:02]} 40. Kg1 {[%emt 0:00:01]} h6 {[%emt 0:00:09]} 41. Rh5 {[%emt 0:00:00]} Kh7 {[%emt 0:00:01]} 42. Kf2 {[%emt 0:00:01]} Kg6 {[%emt 0:00:16]} 43. Ke3 {[%emt 0:00:03]} Ng8 {[%emt 0:00:06]} 44. Bd1 {[%emt 0:00:11]} Ne7 {[%emt 0:00:08]} 45. Rh3 {[%emt 0:00:05]} Kh7 {[%emt 0:00:08]} 46. Bc2 {[%emt 0:00:12]} a5 {[%emt 0:00:04]} 47. Ne2 {[%emt 0:00:02]} Rg7 {[%emt 0:00:11]} 48. Rg3 {[%emt 0:00:03] Wards off Rg2} Rxg3+ {[%emt 0:00:44]} 49. hxg3 $14 {[%emt 0:00:00][%mdl 4096] Endgame KBN-KNN} Kg6 {[%emt 0:00:01]} 50. Nd4 {[%emt 0:00:01] Nc6 is the strong threat.} Kf6 {[%emt 0:00:01]} (50... h5 $1 $14) 51. Bd1 {[%emt 0:00:12]} Nc8 {[%emt 0:00:20] [#]} (51... Nd3 $16 {is a better defense.}) 52. Nc6 $1 $18 {[%emt 0:00:13]} Nb7 {[%emt 0:00:03] [#]} 53. g4 $1 {[%emt 0:00:04]} fxg4 {[%emt 0:00:16]} 54. Bxg4 {[%emt 0:00:00]} (54. Kxe4 h5 $15) 54... Nb6 {[%emt 0:00:01]} 55. Kxe4 {[%emt 0:00:02]} Nc5+ {[%emt 0:00:02]} 56. Ke3 {[%emt 0:00:03]} a4 {[%emt 0:00:03]} 57. Bd1 {[%emt 0:00:03]} ({Not} 57. Nxb4 axb3 58. axb3 Nxb3 $11) 57... axb3 {[%emt 0:00:07]} 58. axb3 {[%emt 0:00:02]} (58. Nxb4 $2 {perishes.} b2 59. Bc2 Nxc4+ 60. Kf3 Na3 $19) 58... Na6 {[%emt 0:00:02]} 59. Kf3 {[%emt 0:00:26]} Nd7 {[%emt 0:00:04]} 60. Kg4 {[%emt 0:00:06] And now Bc2 would win.} Ndc5 $2 {[%emt 0:00:04]} (60... Nf8 61. Nd4 Nc5) 61. Nd4 $2 {[%emt 0:00:02]} (61. Bc2 $18 {and the rest is easy.}) 61... Nd3 $16 {[%emt 0:00:03] White must now prevent ...Nf2+.} 62. Bc2 {[%emt 0:00:09]} h5+ {[%emt 0:00:16]} 63. Kg3 {[%emt 0:00:06]} (63. Kxh5 $16 Nxf4+ 64. Kg4) 63... Nac5 $11 {[%emt 0:00:10]} 64. f5 {[%emt 0:00:12]} Ne4+ $2 {[%emt 0:00:06] This move loses the game for Black.} (64... Ne1 $11 {and Black has nothing to worry.}) 65. Kh4 $18 {[%emt 0:00:02]} Ndc5 $2 {[%emt 0:00:01]} (65... Nec5 {was necessary.} 66. Kxh5 Nc1) 66. Ne6 {[%emt 0:00:09]} Ke5 $2 {[%emt 0:00:08]} (66... Nxe6 67. fxe6 (67. Bxe4 Nd4 $11) 67... Nc5 68. Kxh5 Nb7) 67. Kxh5 {[%emt 0:00:07] White is clearly winning.} Nf6+ {[%emt 0:00:02]} 68. Kg6 {[%emt 0:00:03] aiming for Nxc5.} Ncd7 {[%emt 0:00:00]} 69. Kf7 {[%emt 0:00:03]} Nb6 {[%emt 0:00:03]} 70. Nd8 {[%emt 0:00:02] White threatens Nc6+ and mate.} Nbd7 {[%emt 0:00:02]} 71. Nc6+ {[%emt 0:00:01]} Kf4 {[%emt 0:00:00]} 72. Ke6 {[%emt 0:00:03] Weighted Error Value: White=0.14 (very precise) /Black=0.22 (precise)} 1-0

[Event "AI Cup Div-2 2023"]
[Site "Online"]
[Date "2023.09.25"]
[Round "1.1"]
[White "Dominguez Perez, Leinier"]
[Black "Saric, Ivan"]
[Result "1-0"]
[ECO "B67"]
[WhiteElo "2745"]
[BlackElo "2647"]
[Annotator "TA"]
[PlyCount "47"]
[EventDate "2023.09.18"]
[EventType "k.o."]
[EventCountry "NET"]
[SourceTitle "playchess.com"]
[Source "ChessBase"]
[SourceQuality "1"]
[TimeControl "900+3"]

{[%evp 16,47,26,31,51,36,37,32,41,15,22,14,20,13,23,22,24,21,27,-11,152,148,689,658,824,877,816,791,5514,5497,2423,2290,29987,29988]} 1. e4 {[%emt 0:00:21] Ftacnik,Lubomir} c5 {[%emt 0:00:05]} 2. Nf3 {[%emt 0:00:02]} d6 {[%emt 0:00:03]} 3. d4 {[%emt 0:00:00]} cxd4 {[%emt 0:00:00]} 4. Nxd4 {[%emt 0:00:01]} Nf6 {[%emt 0:00:01]} 5. Nc3 {[%emt 0:00:00]} Nc6 {[%emt 0:00:03]} 6. Bg5 {[%emt 0:00:02]} e6 {[%emt 0:00:01]} 7. Qd2 {[%emt 0:00:01]} a6 {[%emt 0:00:02]} 8. O-O-O {[%emt 0:00:02]} Bd7 {[%emt 0:00:02]} 9. Kb1 {[%emt 0:00:00]} Nxd4 {[%emt 0:00:05] B67: Sicilian: Richter-Rauzer: 7...a6 8 0-0-0 Bd7, lines without 9 f4 Be7.} 10. Qxd4 {[%emt 0:00:02]} Be7 {[%emt 0:00:01]} 11. f4 {[%emt 0:00:06]} Bc6 {[%emt 0:00:10] White is slightly better.} 12. Bc4 $5 {[%emt 0:00:17][%mdl 4] 12.Bc4 is a critical line. A promising side line.} (12. f5 $5 {[%cal Rf5e6]}) 12... h6 {[%emt 0:00:12]} 13. Bh4 {[%emt 0:00:05]} O-O {[%emt 0:00:20][%cal Of6e4]} 14. f5 {[%emt 0:00:50] [#]} exf5 $146 {[%emt 0:00:06]} ({Predecessor:} 14... b5 15. Bb3 exf5 16. exf5 a5 17. Rhe1 a4 18. Rxe7 Qxe7 19. Bd5 Rac8 20. Re1 Qd8 {½-½ Polgar,J (2630)-Popovic,P (2520) EU-Cup 09th final 1993 (1)}) 15. e5 {[%emt 0:00:19]} dxe5 {[%emt 0:00:12]} 16. Qxe5 {[%emt 0:00:03]} Bd7 {[%emt 0:02:19]} 17. g4 {[%emt 0:00:42]} Re8 $2 {[%emt 0:01:30]} ({Better is} 17... Rc8 $11 18. Bb3 g5 19. gxf5 (19. Rhe1 Bc5 $17) 19... Rc5) 18. gxf5 $16 {[%emt 0:00:17] Black must now prevent Rhg1. White has more active pieces.} Qc8 $2 {[%emt 0:00:26][%mdl 8192] Loses the game.} (18... Ng4 $16 19. Qf4 Bxh4 20. Qxg4 (20. Bxf7+ $2 Kxf7 21. Qxg4 Rc8 $17) 20... Rc8) 19. Rhg1 $1 $18 {[%emt 0:00:38]} Kf8 {[%emt 0:07:36] [#]} 20. Rxg7 $3 {[%emt 0:00:19][%mdl 576] Decoy} Kxg7 {[%emt 0:00:56]} 21. Bxf6+ {[%emt 0:00:04]} Kh7 {[%emt 0:00:07] Black is weak on the dark squares} 22. Bxe7 {[%emt 0:00:16]} Qxc4 {[%emt 0:00:13]} 23. Nd5 {[%emt 0:00:13]} Rxe7 {[%emt 0:01:25]} 24. Qxe7 {[%emt 0:00:03] Excellently played by Dominguez Perez!   Weighted Error Value: White=0.08 (flawless) /Black=1.05} 1-0

[Event "AI Cup Div-2 2023"]
[Site "Online"]
[Date "2023.09.25"]
[Round "1.1"]
[White "Andreikin, Dmitry"]
[Black "Antipov, Mikhail Al."]
[Result "1-0"]
[ECO "A22"]
[WhiteElo "2729"]
[BlackElo "2600"]
[Annotator "TA"]
[PlyCount "83"]
[EventDate "2023.09.18"]
[EventType "k.o."]
[EventCountry "NET"]
[SourceTitle "playchess.com"]
[Source "ChessBase"]
[SourceQuality "1"]
[TimeControl "900+3"]

{[%evp 9,83,5,0,-8,12,5,2,0,14,29,24,29,22,27,47,60,64,55,56,66,65,51,47,52,62,60,48,54,61,46,47,40,43,43,49,39,68,44,42,20,31,8,24,31,33,15,33,14,15,21,18,33,33,33,33,33,110,92,109,62,109,113,265,265,287,283,416,404,435,408,690,679,1279,1299,1120,1083]} 1. c4 {[%emt 0:00:04]} Nf6 {[%emt 0:00:06]} 2. Nc3 {[%emt 0:00:03]} e5 {[%emt 0:00:01]} 3. e3 {[%emt 0:00:02]} Bb4 {[%emt 0:01:15]} 4. Nge2 {[%emt 0:00:02]} O-O {[%emt 0:00:13]} 5. a3 {[%emt 0:00:02]} Be7 {[%emt 0:00:19]} 6. g3 {[%emt 0:00:03] A22: English Opening: 1...e5 2 Nc3 Nf6.} c6 {[%emt 0:00:34]} 7. d4 {[%emt 0:00:02]} exd4 {[%emt 0:00:10]} 8. Qxd4 {[%emt 0:00:00] The position is equal.} d5 {[%emt 0:00:07]} 9. cxd5 {[%emt 0:00:04]} cxd5 {[%emt 0:00:11]} 10. Bg2 {[%emt 0:00:03]} Nc6 {[%emt 0:00:01][%cal Bb8c6,Bc6e5,Be5f3,Bf3g5,Bg5e4][%mdl 32]} 11. Qd1 {[%emt 0:00:14] [#]} Ne5 $146 {[%emt 0:00:26]} ({Predecessor:} 11... Bg4 12. h3 Bh5 13. Nxd5 Ne5 14. g4 Bg6 15. O-O Nxd5 16. Qxd5 Qxd5 17. Bxd5 Bd3 {½-½ Seymour,T (2100)-Munshi,A (2183) South Normanton 4NCL op 23rd 2019 (4)}) 12. O-O {[%emt 0:01:04]} Bg4 {[%emt 0:00:05]} 13. h3 {[%emt 0:00:43]} Bf3 {[%emt 0:02:07]} 14. Bxf3 {[%emt 0:00:03]} Nxf3+ {[%emt 0:00:00]} 15. Kg2 {[%emt 0:00:00]} Ng5 {[%emt 0:00:30]} 16. Nf4 {[%emt 0:00:15]} Qd6 {[%emt 0:00:06]} 17. h4 {[%emt 0:01:37]} Nge4 {[%emt 0:00:07]} 18. Nfxd5 {[%emt 0:00:02]} Nxd5 {[%emt 0:04:46]} 19. Qxd5 {[%emt 0:00:17]} Nxc3 {[%emt 0:00:02]} 20. Qxd6 {[%emt 0:00:01]} Bxd6 {[%emt 0:00:00]} 21. bxc3 {[%emt 0:00:00]} Be5 {[%emt 0:00:35]} 22. Bb2 {[%emt 0:01:08]} Rac8 {[%emt 0:00:31]} 23. Rac1 {[%emt 0:00:01]} Rfd8 {[%emt 0:01:33]} 24. f4 {[%emt 0:00:46]} Bf6 {[%emt 0:00:05]} 25. e4 {[%emt 0:00:20]} Kf8 {[%emt 0:00:20]} 26. Rfd1 {[%emt 0:01:01]} Ke8 {[%emt 0:00:09]} 27. Kf3 {[%emt 0:00:28]} g6 {[%emt 0:00:59]} 28. Ke2 {[%emt 0:02:03]} Rc4 {[%emt 0:00:11]} 29. e5 {[%emt 0:00:24]} Be7 {[%emt 0:00:02]} 30. Rd4 {[%emt 0:00:04]} b5 {[%emt 0:00:20]} 31. Rcd1 {[%emt 0:00:43]} Rc6 {[%emt 0:00:24]} 32. a4 {[%emt 0:00:49]} a6 {[%emt 0:00:17]} (32... Rb8 $14) 33. axb5 {[%emt 0:00:10]} axb5 {[%emt 0:00:00]} 34. Rxd8+ {[%emt 0:00:10]} Bxd8 $16 {[%emt 0:00:00][%mdl 4096] Endgame KRB-KRB} 35. Rd5 {[%emt 0:00:01]} h5 $2 {[%emt 0:00:09] This move loses the game for Black.} (35... b4 $16 {keeps fighting.}) 36. Rxb5 $18 {[%emt 0:00:08]} Ke7 {[%emt 0:00:01]} 37. Kd3 {[%emt 0:00:25]} Ke6 {[%emt 0:00:01]} (37... Bb6 {might work better.} 38. Ba3+ Ke6) 38. c4 {[%emt 0:00:01][%cal Bc3c4,Bc4c5,Bc5c6][%mdl 32]} Be7 {[%emt 0:00:10]} 39. Bd4 {[%emt 0:00:05] [#] Strongly threatening Rb6.} Kf5 {[%emt 0:00:01]} (39... Rc7 $142 40. Bf2 Rc6) 40. Rb7 {[%emt 0:00:04] White is clearly winning.} Re6 {[%emt 0:00:05]} 41. c5 {[%emt 0:00:09]} Kg4 {[%emt 0:00:02] [#]} 42. c6 $1 {[%emt 0:00:05] Weighted Error Value: White=0.04 (flawless) /Black=0.26 (precise)} 1-0

[Event "AI Cup Div-2 2023"]
[Site "Online"]
[Date "2023.09.25"]
[Round "1.1"]
[White "Duda, Jan-Krzysztof"]
[Black "Niemann, Hans Moke"]
[Result "1-0"]
[ECO "E05"]
[WhiteElo "2726"]
[BlackElo "2667"]
[Annotator "TA"]
[PlyCount "75"]
[EventDate "2023.09.18"]
[EventType "k.o."]
[EventCountry "NET"]
[SourceTitle "playchess.com"]
[Source "ChessBase"]
[SourceQuality "1"]
[TimeControl "900+3"]

{[%evp 18,75,0,2,14,0,0,0,3,1,0,0,0,-12,41,1,72,83,88,100,79,-34,105,115,166,183,184,180,253,94,82,50,76,72,219,212,190,76,76,71,84,75,126,110,117,114,169,151,204,204,202,198,177,135,830,820,777,764,29989,29990]} 1. d4 {[%emt 0:00:11]} Nf6 {[%emt 0:00:10]} 2. c4 {[%emt 0:00:03]} e6 {[%emt 0:00:02]} 3. Nf3 {[%emt 0:00:01]} d5 {[%emt 0:00:01]} 4. g3 {[%emt 0:00:01]} Be7 {[%emt 0:00:46]} 5. Bg2 {[%emt 0:00:06]} O-O {[%emt 0:00:02]} 6. O-O {[%emt 0:00:03]} dxc4 {[%emt 0:00:00]} 7. Qa4 {[%emt 0:00:06]} a6 {[%emt 0:00:11]} 8. Qxc4 {[%emt 0:00:04]} b5 {[%emt 0:00:07]} 9. Qc2 {[%emt 0:00:01]} Bb7 {[%emt 0:00:09]} 10. Bd2 {[%emt 0:00:01]} Ra7 {[%emt 0:00:37] E05: Open Catalan: 5 Nf3 Be7.} 11. Rd1 {[%emt 0:00:11]} Nbd7 {[%emt 0:00:41]} 12. Ba5 {[%emt 0:00:16]} Qa8 {[%emt 0:00:05] The position is equal.} 13. Qxc7 $5 {[%emt 0:02:09][%mdl 4] An interesting side line.} Rc8 {[%emt 0:01:27]} 14. Qf4 {[%emt 0:00:08]} Rc2 $1 {[%emt 0:00:02][%csl LRb2,LRe2] [#]} 15. Re1 $5 $146 {[%emt 0:01:47][%mdl 8] New and interesting.} ({Predecessor:} 15. Nc3 Nd5 16. Nxd5 Bxd5 17. Rd2 Rc8 18. a3 Nf6 19. Ne1 Bxg2 20. Nxg2 Ne4 21. Rd3 {0-1 Vachier Lagrave,M (2778)-Firouzja,A (2728) Chessbrahmin May blitz 2020 (1.12)}) 15... b4 {[%emt 0:02:15]} (15... Rxb2 16. Qc1 Rb4 17. Bxb4 Bxb4 18. Nbd2 $16) ({Black should play} 15... Nd5 $11 16. Qe4 Rxb2) 16. b3 {[%emt 0:01:33]} (16. Nbd2 Nd5 17. Qe4 Rxd2 18. Nxd2 N5f6 $11) 16... Ne4 {[%emt 0:01:01]} (16... h6 $11 {keeps the balance.} 17. h4 (17. Nbd2 $2 g5 $19) 17... Qc8) 17. a3 $16 {[%emt 0:00:48]} g5 {[%emt 0:03:57][%cal Bg7g5,Bg5g4][%mdl 32]} 18. Qe3 {[%emt 0:00:09]} g4 {[%emt 0:00:02]} 19. Nfd2 {[%emt 0:01:48]} (19. Nh4 $1 $16) 19... Nxd2 {[%emt 0:01:35]} (19... Bg5 $15 {keeps the upper hand.} 20. Qxe4 Bxe4 21. Nxe4 Qb8 22. Nxg5 Qb5) 20. Bxb7 {[%emt 0:00:05]} Rxb7 {[%emt 0:00:02]} (20... Qxb7 $16 21. Nxd2 bxa3) 21. Nxd2 $18 {[%emt 0:00:03]} bxa3 {[%emt 0:00:02]} 22. Qe4 {[%emt 0:01:25][%csl LRc2,LRg4]} Qc8 {[%emt 0:00:02]} (22... Rc8 $142) 23. Qxg4+ $2 {[%emt 0:00:01]} (23. Nc4 $18 {and the rest is easy.} Rb2 24. Qxg4+ Kh8 25. Nxa3 (25. Nxb2 axb2 26. Rab1 Rxb3 $16)) 23... Kf8 $16 {[%emt 0:00:01]} 24. Qe4 {[%emt 0:00:13] Threatens to win with Nc4.} (24. Ne4 {looks sharper.} f5 25. Qf4 Qc6 26. Nc5) 24... Nf6 {[%emt 0:00:02]} 25. Qd3 {[%emt 0:00:02]} Qc6 {[%emt 0:00:21] [#]} (25... Rb5 $16) 26. d5 $1 $18 {[%emt 0:00:35][%mdl 512]} exd5 {[%emt 0:01:13] [#]} (26... Qxd5 $2 27. Qxc2 Qxa5 28. Qc8+ Qd8 29. Qxb7 $18) 27. Nc4 $1 {[%emt 0:00:03][%mdl 512]} Rxc4 $16 {[%emt 0:00:13]} 28. bxc4 {[%emt 0:00:02]} dxc4 {[%emt 0:00:00]} 29. Qd4 {[%emt 0:00:37] And now Bd8 would win.} Bc5 {[%emt 0:00:04] [#]} ({Better is} 29... Qd5 30. Bc3 Qxd4 31. Bxd4 Ne4) 30. Qd8+ $1 {[%emt 0:00:10]} Kg7 {[%emt 0:00:08] Strongly threatening ...Ne4.} 31. Bc3 $36 {[%emt 0:00:01][%mdl 2048] White is really pushing.} Rb3 {[%emt 0:00:01]} (31... Be7 $16 32. Qd2 Rb5) 32. Rec1 $18 {[%emt 0:00:28]} a5 {[%emt 0:00:46]} 33. Qxa5 {[%emt 0:01:11]} (33. Bxa5 Bxf2+ 34. Kxf2 Qc5+ 35. Kg2 Qc6+ 36. Kg1 Qc5+ 37. Kh1 Qc6+ 38. Kg1 Qc5+ 39. Kf1 (39. Kh1 Qc6+ 40. Kg1 $11) 39... Ng4 $11) 33... Kg6 {[%emt 0:00:13] Hoping for ...Bb6.} 34. Bxf6 {[%emt 0:00:09]} Kxf6 {[%emt 0:00:00]} 35. Qd8+ {[%emt 0:00:08]} ({Stronger than} 35. Rxc4 Bxf2+ 36. Kxf2 Qxc4 37. Rxa3 Qd4+ 38. Kg2 Qe4+ 39. Kh3 Qe6+ 40. Kh4 Qe4+ 41. g4 Rxa3 42. Qxa3 Qxe2 $11) 35... Kg6 $2 {[%emt 0:00:01][%mdl 8192]} (35... Kg7 $16) 36. Qg8+ {[%emt 0:00:09]} ({Worse is} 36. Rxc4 Bxf2+ 37. Kxf2 Qxc4 $11) 36... Kf6 {[%emt 0:00:02]} 37. Qxh7 {[%emt 0:00:01] Threatening mate with Qh6+.} ({Weaker is} 37. Rxc4 Bxf2+ 38. Kxf2 Qxc4 $11) 37... c3 {[%emt 0:00:12]} 38. Qh6+ {[%emt 0:00:03][%mdl 64] Skewer. Beautiful play by Duda!   Weighted Error Value: White=0.24 (precise) /Black=0.46} 1-0

[Event "AI Cup Div-2 2023"]
[Site "Online"]
[Date "2023.09.25"]
[Round "1.1"]
[White "Keymer, Vincent"]
[Black "Hakobyan, Aram"]
[Result "1-0"]
[ECO "A13"]
[WhiteElo "2717"]
[BlackElo "2617"]
[Annotator "TA"]
[PlyCount "69"]
[EventDate "2023.09.18"]
[EventType "k.o."]
[EventCountry "NET"]
[SourceTitle "playchess.com"]
[Source "ChessBase"]
[SourceQuality "1"]
[TimeControl "900+3"]

{[%evp 9,69,16,18,26,25,23,32,8,15,10,41,20,51,41,50,39,86,90,87,26,76,0,0,-9,58,6,9,0,170,170,174,166,189,193,205,106,287,290,460,464,533,530,534,525,528,513,620,610,789,779,745,747,1263,1277,1066,760,1262,1207,1503,1498,29975,29973]} 1. c4 {[%emt 0:00:05]} Nf6 {[%emt 0:00:07]} 2. Nf3 {[%emt 0:00:01]} e6 {[%emt 0:00:03]} 3. b3 {[%emt 0:00:01]} d5 {[%emt 0:00:03]} 4. Bb2 {[%emt 0:00:01]} c5 {[%emt 0:00:01]} 5. cxd5 {[%emt 0:00:01]} exd5 {[%emt 0:00:05]} 6. g3 {[%emt 0:00:01] A13: English Opening: 1...e6.} Nc6 {[%emt 0:00:03]} 7. Bg2 {[%emt 0:00:01]} h5 {[%emt 0:00:03] [#]} 8. e3 $146 {[%emt 0:01:09] White is slightly better.} ({Predecessor:} 8. d4 cxd4 9. O-O Be7 10. Nxd4 h4 11. Nc3 hxg3 12. hxg3 Bg4 13. Nc2 Be6 14. Qd2 {0-1 Bok,B (2621)-Aditya,M (2572) AI Cup Play In rapid 2023 (3)}) 8... Bg4 {[%emt 0:01:25][%cal Oh5h4]} 9. h3 {[%emt 0:01:07]} Bf5 {[%emt 0:00:03]} 10. O-O {[%emt 0:00:19]} Be7 {[%emt 0:04:12]} 11. d4 {[%emt 0:00:59]} h4 {[%emt 0:00:03]} 12. Nxh4 {[%emt 0:00:26]} Bxh3 {[%emt 0:00:02]} 13. Bxh3 $16 {[%emt 0:00:19] And now Bg2 would win.} g5 {[%emt 0:00:01] [#]} 14. Nf5 {[%emt 0:01:00]} Rxh3 $11 {[%emt 0:00:02]} 15. Kg2 {[%emt 0:00:11]} (15. Qf3 $16) 15... g4 $1 {[%emt 0:00:37] Strongly threatening ...Qd7.} 16. dxc5 {[%emt 0:00:45]} d4 {[%emt 0:00:30]} (16... Qd7 $1 $11 17. e4 d4) 17. e4 {[%emt 0:00:12]} (17. Re1 $1 $14) 17... Bxc5 {[%emt 0:00:27]} 18. Nd2 {[%emt 0:00:19] Black must now prevent Rc1.} Qd7 $2 {[%emt 0:00:29]} (18... Ne7 $1 $11 {and Black is okay.} 19. Qe2 d3) 19. Rc1 $36 {[%emt 0:00:27][%mdl 2048] Black is under strong pressure.} Bb4 {[%emt 0:01:30]} 20. a3 {[%emt 0:02:20]} Bxd2 {[%emt 0:01:35]} 21. Qxd2 {[%emt 0:00:02]} O-O-O {[%emt 0:00:01]} (21... Nxe4 $2 22. Qf4 $18) 22. Qxd4 {[%emt 0:01:08] Active counter play!} (22. Bxd4 Rh5 23. Ng7 Qxd4 $11) ({White should play} 22. Qf4 $18) 22... Qe6 $2 {[%emt 0:03:40] Black is weak on the dark squares. This move loses the game for Black.} (22... Qxd4 $16 {was necessary.} 23. Bxd4 Nxe4) 23. Qe5 {[%emt 0:01:16]} ({Worse is} 23. Qxf6 Qxe4+ 24. f3 Rd2+ 25. Kg1 gxf3 26. Ne7+ (26. Nd6+ $2 Rxd6 27. Qxf3 Qxf3 $19) 26... Qxe7 27. Qxf3 (27. Rxc6+ $2 bxc6 28. Qxc6+ Qc7 $19) 27... Qd7 $15) 23... Qxe5 {[%emt 0:00:26]} (23... Rd7 {keeps fighting.} 24. Rfe1 (24. Qxf6 Qxe4+ 25. f3 Rd2+ 26. Kg1 gxf3 $17) 24... Qxe5 25. Bxe5 Ne8) 24. Bxe5 {[%emt 0:00:01]} Rdh8 {[%emt 0:00:37] [#] ( -> ...Rh2+)} 25. Nh4 $1 {[%emt 0:00:48]} (25. Bxf6 $2 {is a self mate.} Rh2+ 26. Kg1 Rh1+ 27. Kg2 R8h2#) 25... Rh6 {[%emt 0:00:01]} 26. Bxf6 {[%emt 0:00:13]} Rxf6 {[%emt 0:00:01]} 27. f3 {[%emt 0:00:01][%cal Bf2f3,Bf3f4,Bf4f5][%mdl 32]} Rxh4 {[%emt 0:00:13]} 28. gxh4 {[%emt 0:00:01][%mdl 4096] Endgame KRR-KRN} Rg6 {[%emt 0:00:04]} 29. f4 {[%emt 0:00:05]} Kd7 {[%emt 0:00:01]} 30. Kg3 {[%emt 0:00:05]} Ne7 {[%emt 0:00:05]} 31. f5 {[%emt 0:00:11]} Rb6 {[%emt 0:00:02]} 32. Rc3 {[%emt 0:00:04]} Nc6 {[%emt 0:00:04]} 33. Kxg4 {[%emt 0:00:05]} Ne5+ {[%emt 0:00:00]} 34. Kf4 {[%emt 0:00:04]} f6 {[%emt 0:00:02]} 35. Rd1+ {[%emt 0:00:08] Artfully played by Keymer.   Weighted Error Value: White=0.19 (very precise) /Black=0.72} 1-0